bitfinex/quotes_ETHUSD_20241212
["timestamp","ask_amount","ask_price","bid_price","bid_amount"]
[1733965346758,2.61808,3819.6,3818.9,0.7939]
[1733965347757,2.61807,3819.7,3818.9,0.7939]
[1733965347959,0.24254597,3819.6,3818.9,0.7939]
[1733965348259,0.24254597,3819.9,3819.0,0.978037]
[1733965348459,2.61752,3820.5,3819.1,0.7939]
[1733965348625,0.24258143,3820.4,3819.2,0.02618041]
[1733965348956,2.61752,3820.5,3819.1,0.7939]
[1733965348957,2.61782,3820.0,3819.1,0.7939]
[1733965349558,2.61794,3819.8,3819.1,0.7939]
[1733965349860,2.61802,3819.7,3819.1,0.7939]
[1733965350381,2.61787,3819.9,3819.1,0.7939]
[1733965350720,2.61758,3820.4,3819.1,0.7939]
[1733965350721,2.86058756,3819.8,3819.1,0.7939]
[1733965350980,2.61796,3819.8,3819.1,0.7939]
[1733965351273,1.07923228,3820.5,3819.1,0.7939]
[1733965351420,2.61795,3819.8,3819.1,0.7939]
[1733965351621,1.07923228,3820.5,3819.1,0.7939]
[1733965351873,0.2123,3820.2,3819.1,0.7939]
[1733965352077,2.61789,3819.9,3819.1,0.7939]
[1733965352222,2.61819,3819.5,3819.1,0.7939]
[1733965356157,1.07923228,3820.1,3819.1,0.7939]
[1733965356158,2.61786,3819.9,3819.1,0.7939]
[1733965356371,1.14093206,3819.8,3818.2,0.7829]
[1733965356579,2.62001579,3819.4,3818.2,0.7829]
[1733965356896,2.62001579,3819.4,3817.5,0.7829]
[1733965356897,2.61907,3818.2,3817.5,0.7829]
[1733965357212,2.6191,3818.1,3817.5,0.7829]
[1733965357359,2.61876,3818.6,3817.5,0.7829]
[1733965357550,0.24272265,3818.5,3817.5,0.7829]
[1733965357756,0.24272265,3818.4,3817.5,0.7829]
[1733965357949,0.24272265,3818.3,3817.5,0.7829]
[1733965358271,2.61883,3818.5,3817.5,0.7829]
[1733965358901,1.07923228,3819.4,3817.8,0.7829]
[1733965359091,2.86094964,3819.3,3818.1,1.04763]
[1733965359258,0.24266964,3819.2,3818.2,0.7829]
[1733965359993,2.86107964,3819.2,3818.2,0.7829]
[1733965360156,0.24266964,3819.1,3818.2,0.7829]
[1733965360857,2.61869,3818.7,3818.2,1.02812707]
[1733965361058,2.61869,3818.7,3818.2,0.7829]
[1733965361321,0.2123,3819.2,3818.2,0.7829]
[1733965361596,2.61878,3818.6,3818.2,0.7829]
[1733965361819,3.75808476,3819.1,3818.2,0.7829]
[1733965361820,2.61848,3819.0,3818.2,0.7829]
[1733965361958,0.89713515,3819.1,3818.2,0.7829]
[1733965361959,2.6189,3818.4,3818.2,0.7829]
[1733965362751,2.6189,3818.4,3816.9,3.02619065]
[1733965362752,0.55,3818.9,3817.2,0.7829]
[1733965363098,2.61903,3818.3,3817.2,0.7829]
[1733965363864,2.61883,3818.5,3817.2,0.7829]
[1733965364291,2.61883,3818.5,3817.4,0.7829]
[1733965364497,2.61883,3818.5,3817.6,0.7829]
[1733965366614,2.61893,3818.4,3817.6,0.7829]
[1733965367606,2.62001579,3819.0,3817.6,0.7829]
[1733965367904,2.61896,3818.3,3817.6,0.7829]
[1733965368255,2.61882,3818.6,3817.6,0.7829]
[1733965369208,2.61883,3818.5,3817.6,0.7829]
[1733965369505,2.61883,3818.5,3817.7,0.183072]
[1733965370055,0.13287027,3818.8,3817.7,0.183072]
[1733965370056,2.75151027,3818.8,3817.7,0.183072]
[1733965370262,2.61885,3818.5,3817.6,0.7829]
[1733965370430,0.13287027,3818.8,3817.6,0.7829]
[1733965370812,2.61888,3818.5,3817.6,0.7829]
[1733965372657,1.29153228,3819.3,3817.7,0.78789094]
[1733965372866,1.29153228,3819.3,3817.9,0.7617]
[1733965372867,0.2123,3819.3,3817.9,0.7617]
[1733965373067,2.61869,3818.7,3817.9,0.942639]
[1733965373417,2.61855,3818.9,3817.9,0.942639]
[1733965373836,2.61855,3818.9,3817.9,0.7617]
[1733965374361,2.40771579,3819.2,3817.9,0.7617]
[1733965374362,2.61849,3819.0,3817.9,0.7617]
[1733965375109,2.75499172,3819.3,3818.2,0.7617]
[1733965375232,0.24238321,3819.2,3818.3,1.07376539]
[1733965375436,0.24238321,3819.5,3818.5,0.7617]
[1733965375867,2.86053321,3819.5,3818.5,0.7617]
[1733965376068,0.24238321,3819.4,3818.5,0.7617]
[1733965376792,2.61815,3819.5,3818.5,0.7617]
[1733965377887,0.2123,3820.0,3818.5,0.7617]
[1733965378088,2.61807,3819.7,3818.6,0.7617]
[1733965378290,2.96676822,3820.0,3818.6,0.7617]
[1733965378584,2.61817,3819.5,3818.6,0.7617]
[1733965379183,2.618,3819.7,3818.6,0.7617]
[1733965379384,0.24238743,3819.6,3818.7,0.7617]
[1733965379554,2.618,3819.7,3818.9,0.7617]
[1733965379750,0.24240993,3819.6,3818.9,0.7617]
[1733965380001,2.6179,3819.9,3818.9,0.7617]
[1733965380296,0.24243611,3819.8,3818.9,0.7617]
[1733965380501,0.2123,3820.3,3818.9,0.7617]
[1733965380502,0.24243611,3820.2,3818.9,0.7617]
[1733965380649,2.61796,3819.8,3818.9,0.7617]
[1733965380849,2.6182,3819.5,3818.9,0.7617]
[1733965382510,2.61807,3819.7,3818.9,0.7617]
[1733965382693,2.86057681,3819.6,3818.9,0.7617]
[1733965382858,2.86065681,3819.5,3818.9,0.7617]
[1733965383055,2.61799,3819.8,3818.9,0.7617]
[1733965383316,2.61822,3819.4,3818.9,0.7617]
[1733965383892,2.61805,3819.7,3818.9,0.7617]
[1733965384097,0.24245982,3819.6,3818.9,0.7617]
[1733965384408,2.86052982,3819.6,3818.9,0.7617]
[1733965384576,0.24245614,3819.5,3818.9,0.7617]
[1733965384772,2.86060614,3819.5,3818.9,0.7617]
[1733965385006,2.61821,3819.4,3818.9,0.7617]
[1733965386225,3.48694807,3820.1,3818.9,0.7617]
[1733965386366,2.61826,3819.4,3818.9,0.7617]
[1733965388464,2.61791,3819.9,3818.9,0.7617]
[1733965388465,2.61809,3819.6,3818.9,0.7617]
[1733965388712,2.86079581,3819.5,3818.9,0.7617]
[1733965389029,0.24265581,3819.4,3818.9,0.7617]
[1733965389368,2.61814,3819.5,3818.9,0.7617]
[1733965389951,2.61767,3820.2,3819.2,0.8273]
[1733965390070,1.21589972,3820.5,3819.4,0.8273]
[1733965390267,0.13666744,3820.5,3819.4,0.8273]
[1733965390579,2.6176,3820.3,3819.4,0.8273]
[1733965390768,0.24257011,3820.2,3819.4,0.8273]
[1733965390969,0.24257011,3820.4,3819.4,0.8273]
[1733965391165,0.24257011,3820.3,3819.6,0.8273]
[1733965391408,0.24257011,3820.4,3819.6,0.85347789]
[1733965391622,0.24257011,3820.4,3819.6,0.8273]
[1733965391820,0.24252341,3820.4,3819.6,0.8273]
[1733965392888,2.61739,3820.6,3819.6,0.8273]
[1733965393219,0.2123,3820.9,3819.8,0.8273]
[1733965393436,0.24228071,3820.8,3819.8,0.8273]
[1733965393569,2.85960071,3820.7,3819.8,0.8273]
[1733965393773,2.61753,3820.4,3819.8,0.8273]
[1733965394811,2.61762,3820.3,3819.8,0.8273]
[1733965395172,2.61741,3820.6,3819.8,0.8273]
[1733965395378,2.85968786,3820.5,3819.8,0.8273]
[1733965395597,2.61747,3820.5,3819.8,0.8273]
[1733965395812,2.61732,3820.7,3819.8,0.8273]
[1733965396123,2.8596679,3820.6,3819.8,0.8273]
[1733965396323,0.2422479,3820.5,3819.8,0.8273]
[1733965396775,0.2422479,3820.9,3819.8,0.8273]
[1733965396976,2.61767,3820.2,3819.8,0.8273]
[1733965397888,2.61736,3820.7,3819.8,0.8273]
[1733965397889,2.40771579,3820.6,3819.8,0.8273]
[1733965398105,2.61808,3819.6,3818.5,1.04752]
[1733965398314,2.61808,3819.6,3818.7,0.8273]
[1733965398700,0.2123,3820.0,3818.7,0.8273]
[1733965398877,2.86002806,3820.0,3818.9,1.04741]
[1733965399076,2.6178,3820.0,3819.0,0.8273]
[1733965399482,3.69924807,3820.6,3818.8,0.8273]
[1733965399483,1.07923228,3820.5,3818.8,0.8273]
[1733965399705,1.07923228,3820.5,3819.3,1.04731]
[1733965399706,0.24229501,3820.4,3819.3,1.04731]
[1733965399926,0.24229501,3820.4,3819.4,0.8273]
[1733965400175,2.61773,3820.1,3819.4,0.8273]
[1733965401969,2.61745,3820.5,3819.4,0.8273]
[1733965402190,2.61744,3820.6,3819.6,0.7608]
[1733965402191,0.24240985,3820.4,3819.6,0.7608]
[1733965402466,0.24240985,3820.5,3819.8,0.7608]
[1733965402818,0.24240985,3820.6,3819.8,0.7608]
[1733965403131,0.24240985,3820.5,3819.8,0.7608]
[1733965403515,2.61766,3820.3,3819.8,0.7608]
[1733965403722,0.13665241,3820.7,3819.8,0.7608]
[1733965403723,2.61745,3820.6,3819.8,0.7608]
[1733965403955,0.24254526,3820.5,3819.8,0.7608]
[1733965404270,2.61772,3820.2,3819.8,0.7608]
[1733965404673,0.24257656,3820.1,3819.8,0.7608]
[1733965405659,2.61772,3820.2,3819.8,0.7608]
[1733965406156,0.24262382,3820.1,3819.8,0.7608]
[1733965406374,0.24262382,3820.5,3819.8,0.7608]
[1733965406727,2.61769,3820.2,3819.8,0.7608]
[1733965407024,2.86038382,3820.1,3819.8,0.7608]
[1733965407190,2.61776,3820.1,3819.8,0.7608]
[1733965409423,0.34895241,3820.7,3819.8,0.7608]
[1733965409719,2.6178,3820.0,3819.8,0.7608]
[1733965410376,2.61745,3820.5,3819.8,0.7608]
[1733965410564,2.61766,3820.2,3819.8,0.7608]
[1733965410769,0.24270367,3820.1,3819.8,0.7608]
[1733965410963,2.61766,3820.2,3819.8,0.7608]
[1733965411163,0.24269526,3820.1,3819.8,0.7608]
[1733965411362,2.61778,3820.1,3819.8,0.7608]
[1733965413135,2.61745,3820.5,3819.8,0.7608]
[1733965413422,2.61786,3819.9,3819.8,0.7608]
[1733965413762,0.34895241,3820.7,3819.8,0.7608]
[1733965413971,2.86019084,3820.6,3819.8,0.7608]
[1733965414224,0.24281084,3820.5,3819.8,0.7608]
[1733965414412,2.61762,3820.3,3819.8,0.7608]
[1733965414617,2.75398241,3820.7,3819.4,0.7608]
[1733965414927,2.8602733,3820.6,3819.6,0.7608]
[1733965415289,0.2428833,3820.5,3819.6,0.7608]
[1733965415446,0.2428833,3820.4,3819.6,0.7608]
[1733965415641,2.61746,3820.5,3819.6,0.7608]
[1733965415942,2.61746,3820.5,3819.6,0.78697465]
[1733965415943,0.24288486,3820.4,3819.6,0.78697465]
[1733965416146,2.61739,3820.6,3819.8,0.7608]
[1733965416442,0.2429095,3820.5,3819.8,0.7608]
[1733965416663,0.2429095,3820.4,3819.8,0.7608]
[1733965416949,2.61739,3820.6,3819.8,0.7608]
[1733965417119,0.24291225,3820.5,3819.8,0.7608]
[1733965417324,2.61739,3820.6,3819.8,0.7608]
[1733965417536,0.24295778,3820.5,3819.8,0.7608]
[1733965417844,2.61725,3820.8,3820.0,0.7756]
[1733965417989,0.63176854,3820.7,3820.2,0.7756]
[1733965418194,0.63176854,3820.6,3820.2,0.7756]
[1733965418433,0.24298798,3820.5,3820.2,0.7756]
[1733965418635,0.24298798,3820.4,3820.2,0.7756]
[1733965418838,2.61732,3820.7,3820.2,0.7756]
[1733965419046,0.24302844,3820.6,3820.2,0.7756]
[1733965419211,0.24302844,3820.5,3820.2,0.7756]
[1733965419408,0.3888426,3821.0,3820.3,0.02617334]
[1733965419617,0.63197124,3820.9,3820.3,0.7756]
[1733965419815,0.24312864,3820.8,3820.3,0.7756]
[1733965420019,0.24312864,3820.7,3820.3,0.7756]
[1733965420250,0.24312864,3820.6,3820.3,0.7756]
[1733965420443,0.3888426,3820.9,3820.3,0.7756]
[1733965420647,0.24307303,3820.8,3820.3,0.7756]
[1733965420949,0.24307303,3820.7,3820.3,0.7756]
[1733965421162,0.24307303,3820.6,3820.3,0.7756]
[1733965421439,2.61711,3821.0,3820.3,0.7756]
[1733965421663,0.24297359,3820.9,3820.3,0.7756]
[1733965421809,2.61711,3821.0,3820.3,0.7756]
[1733965422011,0.24296762,3820.9,3820.3,0.7756]
[1733965422218,0.24296762,3820.8,3820.3,0.7756]
[1733965422399,0.24296762,3820.7,3820.3,0.7756]
[1733965422598,2.61711,3821.0,3820.3,0.7756]
[1733965422851,0.2429214,3820.9,3820.3,0.7756]
[1733965423057,0.2429214,3820.8,3820.3,0.7756]
[1733965423353,0.2429214,3820.7,3820.3,0.7756]
[1733965423514,2.61718,3820.9,3820.3,0.7756]
[1733965423706,0.24286181,3820.8,3820.3,0.7756]
[1733965423938,0.24286181,3820.7,3820.3,0.7756]
[1733965424152,2.61697,3821.3,3819.7,0.7756]
[1733965424153,2.61752,3820.4,3819.7,0.7756]
[1733965424359,0.24279401,3820.3,3819.7,0.7756]
[1733965424663,2.61752,3820.4,3819.7,0.7756]
[1733965424952,0.24278539,3820.3,3819.7,0.7756]
[1733965425151,2.61752,3820.4,3819.7,0.7756]
[1733965425308,0.2123,3820.9,3819.7,0.7756]
[1733965425309,0.24278989,3820.3,3819.7,0.7756]
[1733965425510,2.6176,3820.3,3819.7,0.7756]
[1733965426619,0.38874819,3820.6,3819.7,0.7756]
[1733965426869,0.2123,3820.2,3819.7,0.7756]
[1733965427070,0.2123,3820.2,3819.0,0.7756]
[1733965427071,2.61793,3819.8,3819.0,0.7756]
[1733965427377,0.24277579,3820.1,3819.0,0.7756]
[1733965427378,2.86079579,3819.7,3819.0,0.7756]
[1733965427516,2.61802,3819.7,3819.0,0.7756]
[1733965428169,2.61787,3819.9,3819.1,0.40991016]
[1733965428474,0.24275195,3819.8,3819.1,0.40991016]
[1733965428682,2.61787,3819.9,3819.1,0.40991016]
[1733965428837,0.24275273,3819.8,3819.1,0.40991016]
[1733965429167,2.61787,3819.9,3819.1,0.40991016]
[1733965429335,0.24275398,3819.8,3819.2,3.15090117]
[1733965429540,0.24275398,3819.7,3819.2,0.15090117]
[1733965429751,2.61787,3819.9,3819.2,0.15090117]
[1733965430066,2.86070442,3819.8,3819.2,0.15090117]
[1733965430313,0.24275442,3819.7,3819.2,0.15090117]
[1733965430430,2.61795,3819.8,3819.2,0.15090117]
[1733965430625,0.24274862,3819.7,3819.2,0.15090117]
[1733965430831,2.61803,3819.7,3819.0,0.7756]
[1733965431056,2.61821,3819.4,3819.0,0.7756]
[1733965431385,0.38874819,3820.0,3819.0,0.7756]
[1733965431386,1.08649178,3820.0,3819.0,0.7756]
[1733965431666,2.61836,3819.2,3819.0,0.7756]
[1733965431875,0.24269908,3819.1,3819.0,0.7756]
[1733965432377,2.61836,3819.2,3819.0,0.7756]
[1733965432526,0.24259618,3819.1,3819.0,0.7756]
[1733965432727,2.61836,3819.2,3819.0,0.7756]
[1733965433971,2.61836,3819.2,3818.3,0.8081]
[1733965434275,0.60062508,3819.6,3818.4,0.2950323]
[1733965434440,0.60062508,3819.6,3818.3,0.8081]
[1733965434441,2.61829,3819.3,3818.3,0.8081]
[1733965435773,2.61815,3819.5,3818.4,3.0]
[1733965435969,0.24234878,3819.4,3818.5,0.8081]
[1733965436195,2.86053941,3819.4,3818.5,0.8081]
[1733965436487,2.61823,3819.4,3818.6,0.38342844]
[1733965436633,2.61823,3819.4,3818.5,0.8081]
[1733965436976,2.61833,3819.3,3818.5,0.8081]
[1733965437180,0.38775913,3819.6,3818.5,0.8081]
[1733965437342,2.61848,3819.1,3818.5,0.8081]
[1733965437669,2.61827,3819.4,3818.5,0.8081]
[1733965437870,2.86052934,3819.3,3818.5,0.8081]
[1733965438073,0.2422475,3819.2,3818.5,0.8081]
[1733965438935,2.61828,3819.3,3818.5,0.8081]
[1733965440383,0.24213003,3819.2,3818.5,0.993671]
[1733965440594,2.61828,3819.3,3818.5,0.8081]
[1733965440747,2.86052003,3819.2,3818.5,0.8081]
[1733965440950,2.61839,3819.2,3818.5,0.8081]
[1733965441490,2.83051,3819.4,3818.5,0.8081]
[1733965441689,2.61821,3819.4,3818.5,0.8081]
[1733965441887,0.2123,3819.7,3818.5,0.8081]
[1733965442184,0.2123,3819.7,3818.5,0.99367]
[1733965442185,2.61829,3819.3,3818.5,0.99367]
[1733965442400,0.24207507,3819.2,3818.5,0.99367]
[1733965442600,2.61829,3819.3,3818.5,0.99367]
[1733965442904,2.61829,3819.3,3818.5,0.8081]
[1733965442905,0.2420282,3819.2,3818.5,0.8081]
[1733965443094,1.08649178,3819.9,3818.5,0.8081]
[1733965443395,2.61809,3819.6,3818.5,0.83428312]
[1733965443740,0.24202685,3819.5,3818.5,0.83428312]
[1733965444351,0.24202685,3819.5,3818.5,1.07371312]
[1733965444546,0.38724296,3820.0,3818.6,0.8081]
[1733965444752,0.24203169,3819.9,3818.8,0.8081]
[1733965445091,0.24203169,3819.9,3818.9,0.83428092]
[1733965445092,0.13645178,3819.9,3818.9,0.83428092]
[1733965445295,0.24203169,3820.1,3819.2,0.8081]
[1733965445528,2.6178,3820.0,3819.2,0.8081]
[1733965446028,2.61764,3820.3,3819.2,0.8081]
[1733965446433,2.85976392,3820.2,3819.3,0.185548]
[1733965446581,2.61766,3820.2,3819.3,0.185548]
[1733965446781,0.24214594,3820.1,3819.4,0.8078]
[1733965447291,3.84036608,3820.6,3820.0,2.40771579]
[1733965447292,0.1364343,3820.6,3820.0,2.40771579]
[1733965447482,0.24219465,3820.9,3820.2,0.8078]
[1733965447798,0.2123,3821.3,3820.2,0.8078]
[1733965448023,0.2123,3821.3,3820.2,0.993294]
[1733965448024,0.24219465,3821.2,3820.2,0.993294]
[1733965448228,0.24219465,3821.1,3820.2,0.993294]
[1733965448527,0.24219465,3821.0,3820.2,0.993294]
[1733965448728,2.61705,3821.1,3820.2,0.993294]
[1733965449028,0.24217985,3821.0,3820.2,0.993294]
[1733965449247,0.24217985,3821.2,3820.4,0.8078]
[1733965449466,0.24216207,3821.2,3820.5,0.02617214]
[1733965449642,0.4358996,3821.5,3820.6,0.8078]
[1733965449803,0.24216207,3821.4,3820.6,0.8078]
[1733965450153,0.24216207,3821.3,3820.6,0.993283]
[1733965450304,2.61681,3821.5,3820.6,0.993283]
[1733965450305,0.24216207,3821.4,3820.6,0.8078]
[1733965451400,2.61671,3821.6,3820.6,0.8078]
[1733965451644,0.24216207,3821.5,3820.6,0.8078]
[1733965451953,0.24216207,3821.4,3820.6,0.8078]
[1733965452108,0.24216207,3821.5,3820.6,1.85475]
[1733965452305,0.59975932,3821.9,3820.8,0.7547]
[1733965452306,2.85883207,3821.7,3820.8,0.7547]
[1733965452506,0.2421164,3821.6,3820.8,0.7547]
[1733965453225,0.2421164,3821.6,3820.8,0.78086972]
[1733965453550,2.8288,3821.9,3820.8,0.7547]
[1733965453551,0.43583079,3821.8,3820.8,0.7547]
[1733965453705,0.2421164,3821.8,3820.8,0.7547]
[1733965453907,0.2421164,3821.8,3821.0,0.7547]
[1733965454206,2.61622,3822.3,3821.2,0.7547]
[1733965454423,0.24221621,3822.2,3821.2,0.7547]
[1733965454617,2.61646,3822.0,3821.2,0.7547]
[1733965454870,2.40771579,3822.2,3821.2,0.7547]
[1733965455055,2.61656,3821.8,3820.9,0.7547]
[1733965455220,2.61686,3821.4,3820.9,0.7547]
[1733965455633,2.6167,3821.6,3820.9,0.7547]
[1733965455868,0.24214519,3821.5,3820.9,0.7547]
[1733965456163,2.61656,3821.9,3820.9,0.7547]
[1733965456530,2.61656,3821.9,3821.0,1.37094158]
[1733965456862,0.2123,3822.2,3821.0,1.37094158]
[1733965456863,2.6167,3821.6,3821.0,1.37094158]
[1733965457075,2.61636,3822.1,3821.0,1.37094158]
[1733965457275,2.61656,3821.8,3821.0,1.37094158]
[1733965457820,2.61664,3821.7,3821.0,1.37094158]
[1733965459319,2.61664,3821.7,3821.1,0.43709416]
[1733965460065,2.61664,3821.7,3821.0,1.37094158]
[1733965460066,2.61651,3821.9,3821.0,0.7547]
[1733965460275,2.61654,3821.9,3821.0,0.7547]
[1733965460515,2.61636,3822.1,3821.0,0.7547]
[1733965460716,2.61704,3821.1,3821.0,0.7547]
[1733965460925,2.61714,3821.0,3820.4,0.7547]
[1733965461077,2.61714,3821.0,3820.5,0.31624158]
[1733965462276,2.82912,3821.5,3820.5,0.31624158]
[1733965462277,2.61721,3820.9,3820.5,0.31624158]
[1733965463602,2.61706,3821.1,3820.5,0.31624158]
[1733965464478,0.2123,3821.5,3820.5,0.31624158]
[1733965464776,2.61712,3821.0,3820.5,0.31624158]
[1733965464975,2.61712,3821.0,3820.6,0.64786574]
[1733965465623,2.61719,3820.9,3820.6,0.64786574]
[1733965466806,2.61705,3821.1,3820.6,0.64786574]
[1733965467240,0.2123,3821.5,3820.6,0.64786574]
[1733965467408,2.61712,3821.0,3820.6,0.64786574]
[1733965467610,2.61712,3821.0,3820.7,0.47188073]
[1733965468151,2.61694,3821.3,3820.8,0.7909]
[1733965469625,0.2123,3822.2,3820.9,0.7909]
[1733965469826,2.61664,3821.7,3821.1,0.7909]
[1733965470995,2.61653,3821.9,3821.1,0.7909]
[1733965472240,0.24209526,3821.8,3821.1,0.7909]
[1733965472443,0.24209024,3821.8,3821.1,0.7909]
[1733965472597,2.61653,3821.9,3821.1,0.7909]
[1733965472797,2.61658,3821.8,3821.2,0.14107616]
[1733965473238,0.24224628,3821.7,3821.2,0.14107616]
[1733965473839,2.61643,3822.0,3821.2,0.14107616]
[1733965474046,2.61676,3821.6,3821.1,0.7909]
[1733965474195,0.2422394,3821.5,3821.1,0.7909]
[1733965474395,2.61663,3821.7,3821.1,0.7909]
[1733965475225,0.24251002,3821.6,3821.1,0.7909]
[1733965475399,2.61651,3821.9,3821.1,0.7909]
[1733965475611,0.24251235,3821.8,3821.3,0.7909]
[1733965475909,2.61638,3822.1,3821.3,0.7909]
[1733965476220,0.24253264,3822.0,3821.3,0.7909]
[1733965476557,0.24253264,3821.9,3821.3,0.7909]
[1733965476757,0.24253264,3821.8,3821.3,0.7909]
[1733965476911,3.00419561,3822.1,3821.3,0.7909]
[1733965477107,0.24265228,3822.0,3821.3,0.7909]
[1733965477338,2.61666,3821.7,3821.3,0.94608377]
[1733965477551,2.85936228,3821.6,3821.3,0.94608377]
[1733965477761,0.24265228,3821.5,3821.3,0.94608377]
[1733965477961,2.61655,3821.9,3821.3,0.94608377]
[1733965478128,2.85931994,3821.8,3821.3,0.94608377]
[1733965478331,0.24273994,3821.7,3821.3,0.94608377]
[1733965478658,0.24273994,3821.6,3821.3,0.94608377]
[1733965478834,0.24273994,3821.5,3821.3,0.94608377]
[1733965479031,2.61658,3821.8,3821.3,0.94608377]
[1733965479333,0.2427017,3821.7,3821.3,0.94608377]
[1733965479531,0.2427017,3821.6,3821.3,0.94608377]
[1733965479757,0.2427017,3821.5,3821.3,0.94608377]
[1733965479964,2.61658,3821.8,3821.3,0.94608377]
[1733965480143,0.24269744,3821.7,3821.3,0.94608377]
[1733965480316,0.24269744,3821.6,3821.3,0.94608377]
[1733965480522,0.24269744,3821.5,3821.3,0.94608377]
[1733965480722,2.61658,3821.8,3821.3,0.94608377]
[1733965480917,0.24270752,3821.7,3821.3,0.94608377]
[1733965481119,2.61658,3821.8,3821.3,0.94608377]
[1733965481321,0.24270534,3821.7,3821.3,0.94608377]
[1733965481560,0.24270534,3821.6,3821.3,0.94608377]
[1733965481875,0.24270534,3821.5,3820.3,2.40771579]
[1733965482061,0.63102631,3821.4,3820.4,0.766]
[1733965482222,2.61707,3821.1,3820.4,0.766]
[1733965482423,0.24270534,3821.0,3820.5,0.31737158]
[1733965482626,0.24270534,3820.9,3820.5,0.31737158]
[1733965482933,2.61707,3821.1,3820.5,0.31737158]
[1733965483163,0.24266339,3821.0,3820.5,0.31737158]
[1733965483456,0.24266339,3820.9,3820.5,0.31737158]
[1733965483663,2.61707,3821.1,3820.6,0.64910874]
[1733965483842,0.24262017,3821.0,3820.6,0.64910874]
[1733965484037,0.24262017,3820.9,3820.6,0.64910874]
[1733965484281,2.61676,3821.6,3820.6,0.64910874]
[1733965484491,2.61692,3821.3,3820.7,0.766]
[1733965484688,0.63065719,3821.2,3820.7,1.23924803]
[1733965484893,2.85967046,3821.1,3820.7,1.23924803]
[1733965485192,0.24256046,3821.0,3820.7,1.23924803]
[1733965485346,0.24256046,3820.9,3820.7,1.23924803]
[1733965485571,0.38809673,3821.2,3820.7,0.766]
[1733965485765,0.24261854,3821.1,3820.7,0.766]
[1733965485967,0.38809673,3821.2,3820.7,0.766]
[1733965485968,0.24261854,3821.0,3820.7,0.766]
[1733965486312,0.24261854,3820.9,3820.7,0.766]
[1733965486479,2.61699,3821.2,3820.7,0.766]
[1733965486664,0.24259822,3821.1,3820.7,0.766]
[1733965487001,0.24259822,3821.0,3820.7,0.766]
[1733965487171,0.24259822,3820.9,3820.7,0.766]
[1733965487367,2.61714,3821.0,3820.7,0.766]
[1733965487567,0.24261412,3820.9,3820.7,0.766]
[1733965487793,2.61707,3821.1,3820.7,0.766]
[1733965488002,0.24262469,3821.0,3820.7,0.766]
[1733965488212,0.24262469,3820.9,3820.7,0.766]
[1733965488364,2.61725,3820.8,3820.0,0.766]
[1733965488569,2.61725,3820.8,3820.1,0.31737158]
[1733965488968,0.24260364,3820.7,3820.1,0.31737158]
[1733965489217,2.61725,3820.8,3820.0,3.766]
[1733965489725,0.38809673,3821.0,3820.0,3.0]
[1733965490011,0.24259134,3820.9,3820.2,0.766]
[1733965490211,0.24259134,3820.8,3820.2,0.766]
[1733965490367,2.61726,3820.8,3820.2,0.766]
[1733965490590,0.3881004,3821.2,3820.2,0.766]
[1733965490789,2.61713,3821.0,3820.2,0.766]
[1733965491036,0.24256584,3820.9,3820.3,0.43067716]
[1733965491241,0.24256584,3820.8,3820.3,0.43067716]
[1733965491439,2.61713,3821.0,3820.3,0.43067716]
[1733965491610,0.24255176,3820.9,3820.3,0.43067716]
[1733965491934,1.29521572,3821.5,3820.4,0.7519]
[1733965491935,0.24255176,3820.8,3820.4,0.7519]
[1733965492142,2.61712,3821.0,3820.4,0.7519]
[1733965492293,0.24255376,3820.9,3820.4,0.7519]
[1733965492492,2.61712,3821.0,3820.4,0.7519]
[1733965492493,0.24255376,3820.8,3820.4,0.7519]
[1733965492693,2.61712,3821.0,3820.4,0.7519]
[1733965492992,0.24255888,3820.9,3820.4,0.92423487]
[1733965493189,0.24255888,3820.8,3820.4,0.92423487]
[1733965493393,2.61712,3821.0,3820.4,0.92423487]
[1733965493636,0.24260993,3820.9,3820.4,0.92423487]
[1733965493947,0.38819347,3821.1,3820.4,0.92423487]
[1733965494124,2.61691,3821.3,3820.5,0.78806413]
[1733965494125,0.24263257,3821.0,3820.5,0.78806413]
[1733965494359,0.38819347,3821.3,3820.6,0.7519]
[1733965494497,3.69966572,3821.6,3820.6,0.7519]
[1733965494498,0.24265153,3821.2,3820.6,0.7519]
[1733965494690,3.00494347,3821.6,3820.6,0.7519]
[1733965494935,0.24265322,3821.5,3820.6,0.7519]
[1733965495118,0.24265322,3821.4,3820.8,0.7519]
[1733965495320,0.38819347,3821.8,3820.9,0.7519]
[1733965495537,0.63086063,3821.7,3821.0,0.7519]
[1733965495744,1.08291572,3821.9,3821.0,0.7519]
[1733965495745,0.63086063,3821.6,3821.0,0.7519]
[1733965495997,0.24266716,3821.5,3821.0,0.7519]
[1733965496214,0.24266716,3821.4,3821.0,0.99351711]
[1733965496416,3.00486718,3821.8,3821.0,0.99351711]
[1733965496615,0.630953,3821.7,3821.0,0.7519]
[1733965496813,0.24267582,3821.6,3821.0,0.7519]
[1733965497023,0.24267582,3821.5,3821.0,0.7519]
[1733965497349,0.24267582,3821.4,3821.0,0.7519]
[1733965497549,3.00493574,3821.7,3821.0,0.7519]
[1733965497710,0.24261975,3821.6,3821.0,1.29351711]
[1733965497907,0.24261975,3821.5,3821.1,1.86192593]
[1733965498143,0.38828574,3821.9,3821.1,1.83575711]
[1733965498489,0.2425728,3821.8,3821.2,0.7519]
[1733965498688,0.2425728,3821.7,3821.3,0.64241942]
[1733965498892,0.38813022,3822.0,3821.3,0.64241942]
[1733965499092,0.24258202,3821.9,3821.4,0.7519]
[1733965499391,0.24258202,3821.8,3821.4,0.7519]
[1733965499597,0.38813022,3822.0,3821.4,0.7519]
[1733965499749,0.24253563,3821.9,3821.5,0.13943194]
[1733965499944,0.24253563,3821.8,3821.5,0.13943194]
[1733965500193,2.61631,3822.2,3821.5,0.13943194]
[1733965500358,0.63054653,3822.1,3821.5,0.13943194]
[1733965500549,0.2425119,3822.0,3821.5,0.13943194]
[1733965500748,0.2425119,3821.9,3821.5,0.13943194]
[1733965501059,0.2425119,3821.8,3821.5,0.13943194]